[Event "Late-Titled-Tuesday-Blitz-February-13-2024"]
[Site "Chess.com"]
[Date "2024.02.13"]
[Round "8"]
[White "NovakRatko"]
[Black "titomagno_64"]
[Result "0-1"]
[WhiteElo "2318"]
[BlackElo "2232"]
[TimeControl "180+1"]
[EndTime "15:26:04 PST"]
[Termination "titomagno_64 won by resignation"]

1. d4 {[%clk 0:02:49.6]} 1... d5 {[%clk 0:02:51.2]} 2. c4 {[%clk 0:02:49.7]}
2... Nc6 {[%clk 0:02:51.9]} 3. cxd5 {[%clk 0:02:49.9]} 3... Qxd5 {[%clk
0:02:51.8]} 4. Nc3 {[%clk 0:02:48.3]} 4... Qxd4 {[%clk 0:02:49.9]} 5. Bd2 {[%clk
0:02:48.6]} 5... a6 {[%clk 0:02:18.1]} 6. Nf3 {[%clk 0:02:47.8]} 6... Qd6 {[%clk
0:02:06]} 7. Ne4 {[%clk 0:02:41.7]} 7... Qg6 {[%clk 0:02:03.2]} 8. Ng3 {[%clk
0:02:32.4]} 8... Nf6 {[%clk 0:01:55.7]} 9. h3 {[%clk 0:02:20.7]} 9... Ne4 {[%clk
0:01:22.8]} 10. Bf4 {[%clk 0:02:02.7]} 10... e5 {[%clk 0:01:13.8]} 11. Nxe4
{[%clk 0:01:41.8]} 11... Qxe4 {[%clk 0:01:09.9]} 12. Bd2 {[%clk 0:01:40.1]}
12... Bd6 {[%clk 0:01:01.7]} 13. Ng5 {[%clk 0:01:34.6]} 13... Qf5 {[%clk
0:00:56.5]} 14. e4 {[%clk 0:01:33.3]} 14... Qg6 {[%clk 0:00:53.8]} 15. Bc4
{[%clk 0:01:20.2]} 15... O-O {[%clk 0:00:51]} 16. Qg4 {[%clk 0:01:01.8]} 16...
Bxg4 {[%clk 0:00:50.3]} 0-1

[Event "Late-Titled-Tuesday-Blitz-February-13-2024"]
[Site "Chess.com"]
[Date "2024.02.13"]
[Round "8"]
[White "alexrustemov"]
[Black "chegueps"]
[Result "1-0"]
[WhiteElo "2829"]
[BlackElo "2675"]
[TimeControl "180+1"]
[EndTime "15:26:13 PST"]
[Termination "alexrustemov won on time"]

1. d4 {[%clk 0:03:00.9]} 1... Nf6 {[%clk 0:02:59.5]} 2. c4 {[%clk 0:03:01.3]}
2... g6 {[%clk 0:02:59.6]} 3. Nf3 {[%clk 0:03:01.6]} 3... Bg7 {[%clk 0:03:00.2]}
4. g3 {[%clk 0:03:02.1]} 4... O-O {[%clk 0:03:00.8]} 5. Bg2 {[%clk 0:03:02.6]}
5... d6 {[%clk 0:03:01.5]} 6. Nc3 {[%clk 0:03:02.9]} 6... Nbd7 {[%clk 0:03:02]}
7. d5 {[%clk 0:03:03.4]} 7... a5 {[%clk 0:02:39.5]} 8. O-O {[%clk 0:02:59.7]}
8... Nc5 {[%clk 0:02:39.2]} 9. Be3 {[%clk 0:02:58.7]} 9... Ng4 {[%clk
0:02:29.1]} 10. Bd4 {[%clk 0:02:58.2]} 10... e5 {[%clk 0:02:14.4]} 11. dxe6
{[%clk 0:02:54.6]} 11... Bxe6 {[%clk 0:02:14.4]} 12. Bxg7 {[%clk 0:02:52.6]}
12... Kxg7 {[%clk 0:02:15.3]} 13. b3 {[%clk 0:02:48.1]} 13... Qf6 {[%clk
0:02:03.5]} 14. Rc1 {[%clk 0:02:43.1]} 14... Rfe8 {[%clk 0:01:57.6]} 15. h3
{[%clk 0:02:41]} 15... Ne5 {[%clk 0:01:57.8]} 16. Nd4 {[%clk 0:02:31.4]} 16...
a4 {[%clk 0:00:58]} 17. b4 {[%clk 0:02:21.6]} 17... Na6 {[%clk 0:00:57.7]} 18.
Ne4 {[%clk 0:02:08.2]} 18... Qd8 {[%clk 0:00:53.9]} 19. f4 {[%clk 0:02:01.2]}
19... Nd7 {[%clk 0:00:25.4]} 20. Qd2 {[%clk 0:01:59.5]} 20... Nb6 {[%clk
0:00:13.5]} 21. f5 {[%clk 0:01:53.8]} 21... Bxf5 {[%clk 0:00:04.8]} 22. Rxf5
{[%clk 0:01:53.6]} 22... gxf5 {[%clk 0:00:05.7]} 23. Nxf5+ {[%clk 0:01:53.5]}
23... Kh8 {[%clk 0:00:05.5]} 24. Qh6 {[%clk 0:01:53.7]} 1-0

[Event "Late-Titled-Tuesday-Blitz-February-13-2024"]
[Site "Chess.com"]
[Date "2024.02.13"]
[Round "8"]
[White "pfalcon1949"]
[Black "Fjal"]
[Result "1-0"]
[WhiteElo "1966"]
[BlackElo "2201"]
[TimeControl "180+1"]
[EndTime "15:26:25 PST"]
[Termination "pfalcon1949 won by checkmate"]

1. e4 {[%clk 0:03:00.9]} 1... d6 {[%clk 0:02:51.1]} 2. d4 {[%clk 0:02:59.5]}
2... Nf6 {[%clk 0:02:50]} 3. Nc3 {[%clk 0:03:00]} 3... g6 {[%clk 0:02:49.9]} 4.
f4 {[%clk 0:02:58.5]} 4... Bg7 {[%clk 0:02:49.2]} 5. Nf3 {[%clk 0:02:58.6]} 5...
O-O {[%clk 0:02:46.7]} 6. Bd3 {[%clk 0:02:58.7]} 6... Nc6 {[%clk 0:02:46]} 7.
O-O {[%clk 0:02:58.6]} 7... e5 {[%clk 0:02:44.2]} 8. dxe5 {[%clk 0:02:57.6]}
8... dxe5 {[%clk 0:02:44.2]} 9. f5 {[%clk 0:02:58.5]} 9... Nd4 {[%clk
0:02:42.1]} 10. Nxe5 {[%clk 0:02:52.4]} 10... Nxe4 {[%clk 0:02:39.5]} 11. fxg6
{[%clk 0:02:30.2]} 11... Nxc3 {[%clk 0:02:06.4]} 12. gxf7+ {[%clk 0:02:25.9]}
12... Kh8 {[%clk 0:02:05.9]} 13. Qh5 {[%clk 0:02:17.7]} 13... Nce2+ {[%clk
0:01:56.7]} 14. Kh1 {[%clk 0:02:01.9]} 14... h6 {[%clk 0:00:28.4]} 15. Ng6+
{[%clk 0:01:54.6]} 15... Kh7 {[%clk 0:00:23.4]} 16. Nxf8+ {[%clk 0:01:54.4]}
16... Kh8 {[%clk 0:00:18.7]} 17. Ng6+ {[%clk 0:01:53.3]} 17... Kh7 {[%clk
0:00:18.5]} 18. f8=Q {[%clk 0:01:40.5]} 18... Bxf8 {[%clk 0:00:15.1]} 19. Nxf8+
{[%clk 0:01:39.6]} 19... Kg7 {[%clk 0:00:06.2]} 20. Qxh6+ {[%clk 0:01:26]} 20...
Kg8 {[%clk 0:00:05.3]} 21. Qh7# {[%clk 0:01:25.8]} 1-0

[Event "Late-Titled-Tuesday-Blitz-February-13-2024"]
[Site "Chess.com"]
[Date "2024.02.13"]
[Round "8"]
[White "deepfear"]
[Black "Jamal-Jamal-Jamal"]
[Result "0-1"]
[WhiteElo "1985"]
[BlackElo "2264"]
[TimeControl "180+1"]
[EndTime "15:26:28 PST"]
[Termination "Jamal-Jamal-Jamal won on time"]

1. e4 {[%clk 0:02:57.8]} 1... e6 {[%clk 0:03:00.9]} 2. Nf3 {[%clk 0:02:48.6]}
2... d5 {[%clk 0:03:00.8]} 3. e5 {[%clk 0:02:48.7]} 3... c5 {[%clk 0:02:58.9]}
4. b4 {[%clk 0:02:48.5]} 4... cxb4 {[%clk 0:02:58.6]} 5. d4 {[%clk 0:02:46.9]}
5... Ne7 {[%clk 0:02:55.9]} 6. a3 {[%clk 0:02:42.9]} 6... Nf5 {[%clk 0:02:53.2]}
7. axb4 {[%clk 0:02:42.1]} 7... Bxb4+ {[%clk 0:02:52]} 8. c3 {[%clk 0:02:42.3]}
8... Be7 {[%clk 0:02:52.6]} 9. Bd3 {[%clk 0:02:41.8]} 9... O-O {[%clk
0:02:51.2]} 10. O-O {[%clk 0:02:41.4]} 10... Nc6 {[%clk 0:02:49]} 11. Bc2 {[%clk
0:02:13.8]} 11... a5 {[%clk 0:02:38.9]} 12. Qd3 {[%clk 0:02:06.7]} 12... g6
{[%clk 0:02:39.3]} 13. Na3 {[%clk 0:02:06.2]} 13... b6 {[%clk 0:02:38.2]} 14.
Qb5 {[%clk 0:01:55.9]} 14... Qc7 {[%clk 0:02:24.8]} 15. Ba4 {[%clk 0:01:25.5]}
15... Na7 {[%clk 0:02:13.9]} 16. Qd3 {[%clk 0:01:13.7]} 16... Bd7 {[%clk
0:02:13.6]} 17. Bxd7 {[%clk 0:00:54.3]} 17... Qxd7 {[%clk 0:02:14.5]} 18. g4
{[%clk 0:00:47.3]} 18... Nh4 {[%clk 0:02:13.5]} 19. Bh6 {[%clk 0:00:45.1]} 19...
Nxf3+ {[%clk 0:02:03.1]} 20. Qxf3 {[%clk 0:00:46]} 20... Rfc8 {[%clk 0:02:03]}
21. Rfb1 {[%clk 0:00:42.4]} 21... b5 {[%clk 0:02:01.8]} 22. Qg3 {[%clk
0:00:20.3]} 22... b4 {[%clk 0:02:00.7]} 23. cxb4 {[%clk 0:00:19.2]} 23... axb4
{[%clk 0:02:01.6]} 24. h4 {[%clk 0:00:07]} 24... Rc3 {[%clk 0:01:52.3]} 25. Qg2
{[%clk 0:00:04.3]} 25... Rxa3 {[%clk 0:01:51.4]} 26. h5 {[%clk 0:00:04.4]} 26...
Nb5 {[%clk 0:01:47.8]} 27. Rxa3 {[%clk 0:00:02.7]} 27... Rxa3 {[%clk 0:01:47.4]}
28. hxg6 {[%clk 0:00:01.8]} 28... fxg6 {[%clk 0:01:44.8]} 0-1

[Event "Late-Titled-Tuesday-Blitz-February-13-2024"]
[Site "Chess.com"]
[Date "2024.02.13"]
[Round "8"]
[White "Savagelittlemole"]
[Black "kibromNNN"]
[Result "1-0"]
[WhiteElo "2458"]
[BlackElo "1817"]
[TimeControl "180+1"]
[EndTime "15:26:36 PST"]
[Termination "Savagelittlemole won by resignation"]

1. e4 {[%clk 0:03:00.9]} 1... d6 {[%clk 0:02:55.7]} 2. d4 {[%clk 0:03:00.3]}
2... Nf6 {[%clk 0:02:55.4]} 3. Nc3 {[%clk 0:02:59]} 3... c6 {[%clk 0:02:52.9]}
4. Bg5 {[%clk 0:02:59.3]} 4... Nbd7 {[%clk 0:02:48.9]} 5. f4 {[%clk 0:02:59]}
5... e6 {[%clk 0:02:43.2]} 6. e5 {[%clk 0:02:56.3]} 6... h6 {[%clk 0:02:41.1]}
7. Bh4 {[%clk 0:02:51]} 7... dxe5 {[%clk 0:02:38.5]} 8. dxe5 {[%clk 0:02:47.4]}
8... g5 {[%clk 0:02:36.8]} 9. fxg5 {[%clk 0:02:47.2]} 9... hxg5 {[%clk
0:02:35.4]} 10. Bxg5 {[%clk 0:02:45.4]} 10... Qa5 {[%clk 0:02:30]} 11. Bxf6
{[%clk 0:02:41.2]} 11... Nxf6 {[%clk 0:02:26.1]} 12. exf6 {[%clk 0:02:42.1]}
12... Bd7 {[%clk 0:02:16.7]} 13. Nf3 {[%clk 0:02:38.9]} 13... O-O-O {[%clk
0:02:14.7]} 14. Bd3 {[%clk 0:02:39.5]} 14... Bb4 {[%clk 0:02:13.3]} 15. Qd2
{[%clk 0:02:35]} 15... Rhg8 {[%clk 0:02:08.9]} 16. O-O {[%clk 0:02:25.1]} 16...
e5 {[%clk 0:02:04]} 17. a3 {[%clk 0:02:22.1]} 17... Bc5+ {[%clk 0:01:59.2]} 18.
Kh1 {[%clk 0:02:20.4]} 18... Qc7 {[%clk 0:01:57.1]} 19. Ne4 {[%clk 0:02:19.7]}
19... Bf8 {[%clk 0:01:51.2]} 20. Qc3 {[%clk 0:02:14.8]} 20... Re8 {[%clk
0:01:48.1]} 21. Bc4 {[%clk 0:02:10.6]} 21... Be6 {[%clk 0:01:43.1]} 22. Bxe6+
{[%clk 0:02:07.6]} 22... Rxe6 {[%clk 0:01:41]} 23. Rae1 {[%clk 0:02:02.4]} 23...
Bh6 {[%clk 0:01:29.4]} 24. Nc5 {[%clk 0:01:57.8]} 24... Rxf6 {[%clk 0:01:26.8]}
25. Qxe5 {[%clk 0:01:53.9]} 25... Rfg6 {[%clk 0:01:22.4]} 26. Qxc7+ {[%clk
0:01:51.6]} 26... Kxc7 {[%clk 0:01:21.6]} 27. Re2 {[%clk 0:01:48.2]} 27... b6
{[%clk 0:01:18.9]} 28. Nd3 {[%clk 0:01:48.4]} 28... f6 {[%clk 0:01:13.5]} 29.
Nd4 {[%clk 0:01:45.3]} 29... Bf8 {[%clk 0:01:03.9]} 30. g3 {[%clk 0:01:42]}
30... Bd6 {[%clk 0:00:57.3]} 31. Re6 {[%clk 0:01:39.2]} 31... Rh6 {[%clk
0:00:47.3]} 32. Rfxf6 {[%clk 0:01:33.7]} 32... Rxf6 {[%clk 0:00:44.3]} 33. Rxf6
{[%clk 0:01:34.6]} 33... Rh8 {[%clk 0:00:44.4]} 34. Rf7+ {[%clk 0:01:33.5]}
34... Kb8 {[%clk 0:00:42.9]} 35. Nxc6+ {[%clk 0:01:32.6]} 35... Kc8 {[%clk
0:00:43.6]} 36. Kg2 {[%clk 0:01:30.1]} 1-0

[Event "Late-Titled-Tuesday-Blitz-February-13-2024"]
[Site "Chess.com"]
[Date "2024.02.13"]
[Round "8"]
[White "Malev212"]
[Black "Binary010"]
[Result "0-1"]
[WhiteElo "2686"]
[BlackElo "2885"]
[TimeControl "180+1"]
[EndTime "15:26:39 PST"]
[Termination "Binary010 won by resignation"]

1. e4 {[%clk 0:02:55]} 1... c5 {[%clk 0:03:00.1]} 2. Nf3 {[%clk 0:02:53.9]} 2...
d6 {[%clk 0:03:00.4]} 3. d4 {[%clk 0:02:53.7]} 3... cxd4 {[%clk 0:03:01.3]} 4.
Nxd4 {[%clk 0:02:53.7]} 4... Nf6 {[%clk 0:03:02]} 5. Nc3 {[%clk 0:02:53.8]} 5...
a6 {[%clk 0:03:02.4]} 6. Bc4 {[%clk 0:02:53.7]} 6... e6 {[%clk 0:03:02.2]} 7.
Be3 {[%clk 0:02:53.7]} 7... b5 {[%clk 0:02:57.1]} 8. Bb3 {[%clk 0:02:53.5]} 8...
Be7 {[%clk 0:02:57.8]} 9. a3 {[%clk 0:02:51]} 9... O-O {[%clk 0:02:57.7]} 10.
Qe2 {[%clk 0:02:50.9]} 10... Bb7 {[%clk 0:02:48.8]} 11. f3 {[%clk 0:02:50.9]}
11... Nc6 {[%clk 0:02:48.5]} 12. O-O-O {[%clk 0:02:49.3]} 12... Na5 {[%clk
0:02:39.2]} 13. Ba2 {[%clk 0:02:43.1]} 13... Rc8 {[%clk 0:02:39.4]} 14. e5
{[%clk 0:02:35.9]} 14... Nd5 {[%clk 0:02:14]} 15. Nxd5 {[%clk 0:02:34.7]} 15...
Bxd5 {[%clk 0:02:14.1]} 16. Bxd5 {[%clk 0:02:33.7]} 16... exd5 {[%clk
0:02:14.9]} 17. e6 {[%clk 0:02:30.2]} 17... Bf6 {[%clk 0:02:10.1]} 18. Kb1
{[%clk 0:02:25.5]} 18... Nc4 {[%clk 0:02:04.7]} 19. Bc1 {[%clk 0:02:22.2]} 19...
Qc7 {[%clk 0:01:31.1]} 20. b3 {[%clk 0:02:14]} 20... Qc5 {[%clk 0:01:12]} 21.
exf7+ {[%clk 0:02:06.5]} 21... Rxf7 {[%clk 0:01:12]} 22. Ne6 {[%clk 0:01:58.2]}
22... Nxa3+ {[%clk 0:00:46.1]} 23. Ka2 {[%clk 0:01:56.8]} 23... Qxc2+ {[%clk
0:00:43.6]} 24. Qxc2 {[%clk 0:01:56.1]} 24... Nxc2 {[%clk 0:00:44.3]} 25. Kb1
{[%clk 0:01:47.7]} 25... Re7 {[%clk 0:00:27.7]} 26. Nf4 {[%clk 0:01:43.6]} 26...
d4 {[%clk 0:00:27.9]} 27. Nd5 {[%clk 0:01:39.5]} 27... Re2 {[%clk 0:00:28]} 28.
Rd2 {[%clk 0:01:35.8]} 28... Rxd2 {[%clk 0:00:21.7]} 29. Bxd2 {[%clk 0:01:35.8]}
29... Na3+ {[%clk 0:00:22.3]} 30. Kb2 {[%clk 0:01:36]} 30... Rc2+ {[%clk
0:00:21.6]} 31. Kxa3 {[%clk 0:01:35.9]} 31... Rxd2 {[%clk 0:00:22.5]} 32. Rc1
{[%clk 0:01:29.4]} 32... Rxg2 {[%clk 0:00:21.9]} 33. Rd1 {[%clk 0:01:24.6]}
33... Rxh2 {[%clk 0:00:20.2]} 0-1

[Event "Late-Titled-Tuesday-Blitz-February-13-2024"]
[Site "Chess.com"]
[Date "2024.02.13"]
[Round "8"]
[White "DeGrootteZ"]
[Black "Hrant_ChessMood"]
[Result "0-1"]
[WhiteElo "2840"]
[BlackElo "2958"]
[TimeControl "180+1"]
[EndTime "15:26:45 PST"]
[Termination "Hrant_ChessMood won by resignation"]

1. c4 {[%clk 0:03:00.9]} 1... e6 {[%clk 0:02:53.3]} 2. Nf3 {[%clk 0:03:00.3]}
2... d5 {[%clk 0:02:53.5]} 3. g3 {[%clk 0:02:59.5]} 3... dxc4 {[%clk 0:02:52.6]}
4. Bg2 {[%clk 0:02:58.5]} 4... Nd7 {[%clk 0:02:51.3]} 5. O-O {[%clk 0:02:58.5]}
5... a6 {[%clk 0:02:49.3]} 6. Qc2 {[%clk 0:02:49.3]} 6... Ngf6 {[%clk
0:02:44.9]} 7. Qxc4 {[%clk 0:02:42.9]} 7... b5 {[%clk 0:02:45.2]} 8. Qc2 {[%clk
0:02:39.6]} 8... Bb7 {[%clk 0:02:45.4]} 9. a4 {[%clk 0:02:35.4]} 9... Bd6 {[%clk
0:02:37.8]} 10. d3 {[%clk 0:02:34.6]} 10... O-O {[%clk 0:02:37.1]} 11. Na3
{[%clk 0:02:28.7]} 11... c5 {[%clk 0:02:31.2]} 12. Bd2 {[%clk 0:02:05.9]} 12...
Qb6 {[%clk 0:02:29.2]} 13. axb5 {[%clk 0:01:56]} 13... axb5 {[%clk 0:02:28]} 14.
Qb3 {[%clk 0:01:55.9]} 14... Bc6 {[%clk 0:02:21.4]} 15. Nh4 {[%clk 0:01:53.6]}
15... Rab8 {[%clk 0:02:13.6]} 16. Nc2 {[%clk 0:01:41]} 16... Rfc8 {[%clk
0:02:04.5]} 17. Bxc6 {[%clk 0:01:40]} 17... Qxc6 {[%clk 0:02:04.5]} 18. Ra7
{[%clk 0:01:37.4]} 18... c4 {[%clk 0:02:00.2]} 19. dxc4 {[%clk 0:01:33.8]} 19...
bxc4 {[%clk 0:02:00]} 20. Qa2 {[%clk 0:01:26.8]} 20... Bc5 {[%clk 0:01:51.3]}
21. Ra6 {[%clk 0:01:24.8]} 21... Qe4 {[%clk 0:01:46.1]} 22. Ne3 {[%clk
0:01:18.6]} 22... Bd4 {[%clk 0:01:40]} 23. Rb1 {[%clk 0:01:12.4]} 23... c3
{[%clk 0:01:35.6]} 24. Bc1 {[%clk 0:01:00.3]} 24... cxb2 {[%clk 0:01:35.9]} 25.
Bxb2 {[%clk 0:00:54.5]} 25... Bxe3 {[%clk 0:01:36.2]} 26. fxe3 {[%clk 0:00:49]}
26... Qxe3+ {[%clk 0:01:36.3]} 27. Kh1 {[%clk 0:00:20.4]} 27... Qxe2 {[%clk
0:01:35.5]} 28. Ng2 {[%clk 0:00:07]} 28... Rxb2 {[%clk 0:01:32]} 29. Qxb2 {[%clk
0:00:05.4]} 29... Qxa6 {[%clk 0:01:31.7]} 0-1

[Event "Late-Titled-Tuesday-Blitz-February-13-2024"]
[Site "Chess.com"]
[Date "2024.02.13"]
[Round "8"]
[White "ozates"]
[Black "emeli_chess"]
[Result "0-1"]
[WhiteElo "2575"]
[BlackElo "2418"]
[TimeControl "180+1"]
[EndTime "15:26:49 PST"]
[Termination "emeli_chess won on time"]

1. e4 {[%clk 0:03:00.9]} 1... e5 {[%clk 0:02:59.8]} 2. Nf3 {[%clk 0:03:01]} 2...
Nc6 {[%clk 0:03:00.1]} 3. Nc3 {[%clk 0:02:58.9]} 3... Nf6 {[%clk 0:02:59.5]} 4.
a3 {[%clk 0:02:57.7]} 4... d5 {[%clk 0:02:57.3]} 5. Bb5 {[%clk 0:02:57.3]} 5...
d4 {[%clk 0:02:48.4]} 6. Ne2 {[%clk 0:02:57.3]} 6... Bd6 {[%clk 0:02:44.6]} 7.
Ng3 {[%clk 0:02:57.1]} 7... g6 {[%clk 0:02:34.7]} 8. O-O {[%clk 0:02:56.7]} 8...
h5 {[%clk 0:02:33.3]} 9. h3 {[%clk 0:02:45.8]} 9... h4 {[%clk 0:02:31.6]} 10.
Ne2 {[%clk 0:02:45.9]} 10... Nxe4 {[%clk 0:02:23.7]} 11. d3 {[%clk 0:02:46.1]}
11... Nc5 {[%clk 0:02:17.4]} 12. Bg5 {[%clk 0:02:46.7]} 12... f6 {[%clk
0:02:15.1]} 13. Bxh4 {[%clk 0:02:45.6]} 13... g5 {[%clk 0:02:13.9]} 14. Bg3
{[%clk 0:02:45.9]} 14... Bxh3 {[%clk 0:01:52.2]} 15. gxh3 {[%clk 0:02:44.2]}
15... Qd7 {[%clk 0:01:52.1]} 16. Nh2 {[%clk 0:02:23.5]} 16... Qxh3 {[%clk
0:01:49]} 17. Qe1 {[%clk 0:01:18.7]} 17... O-O-O {[%clk 0:01:44.8]} 18. Nc1
{[%clk 0:00:41]} 18... Rdg8 {[%clk 0:01:37.3]} 19. b4 {[%clk 0:00:33.3]} 19...
Ne6 {[%clk 0:01:36.1]} 20. Bxc6 {[%clk 0:00:32]} 20... bxc6 {[%clk 0:01:34.6]}
21. Qe4 {[%clk 0:00:32.6]} 21... Nf4 {[%clk 0:01:34.4]} 22. Qxc6 {[%clk
0:00:26.5]} 22... f5 {[%clk 0:01:19.4]} 23. Re1 {[%clk 0:00:14.7]} 23... e4
{[%clk 0:01:16.4]} 0-1

[Event "Late-Titled-Tuesday-Blitz-February-13-2024"]
[Site "Chess.com"]
[Date "2024.02.13"]
[Round "8"]
[White "Mikhail_Golubev"]
[Black "terrortoast"]
[Result "1-0"]
[WhiteElo "2689"]
[BlackElo "2479"]
[TimeControl "180+1"]
[EndTime "15:26:54 PST"]
[Termination "Mikhail_Golubev won by resignation"]

1. e4 {[%clk 0:03:00.9]} 1... c5 {[%clk 0:02:57.5]} 2. Nf3 {[%clk 0:03:00.9]}
2... d6 {[%clk 0:02:53]} 3. d4 {[%clk 0:03:00.9]} 3... cxd4 {[%clk 0:02:53.9]}
4. Nxd4 {[%clk 0:03:01.3]} 4... Nf6 {[%clk 0:02:54.5]} 5. Nc3 {[%clk 0:03:01]}
5... a6 {[%clk 0:02:55.1]} 6. Bc4 {[%clk 0:03:00.9]} 6... e6 {[%clk 0:02:55.2]}
7. O-O {[%clk 0:03:01.5]} 7... b5 {[%clk 0:02:53.2]} 8. Bb3 {[%clk 0:03:01]}
8... Be7 {[%clk 0:02:53.8]} 9. f4 {[%clk 0:02:59.9]} 9... O-O {[%clk 0:02:49.4]}
10. e5 {[%clk 0:02:59.8]} 10... dxe5 {[%clk 0:02:49.7]} 11. fxe5 {[%clk
0:03:00.7]} 11... Nfd7 {[%clk 0:02:50.3]} 12. Be3 {[%clk 0:02:57.9]} 12... Nxe5
{[%clk 0:02:47.2]} 13. Qh5 {[%clk 0:02:57.4]} 13... Ng6 {[%clk 0:02:37.2]} 14.
Rf3 {[%clk 0:02:26.9]} 14... Bd7 {[%clk 0:01:40.4]} 15. Raf1 {[%clk 0:02:17.7]}
15... Nc6 {[%clk 0:01:18.1]} 16. Rh3 {[%clk 0:02:04.8]} 16... Bh4 {[%clk
0:00:48.3]} 17. Nf3 {[%clk 0:01:51.2]} 17... e5 {[%clk 0:00:44.5]} 18. Rxh4
{[%clk 0:01:18.6]} 18... Nxh4 {[%clk 0:00:37.9]} 19. Ng5 {[%clk 0:01:17.6]}
19... h6 {[%clk 0:00:30.1]} 20. Nxf7 {[%clk 0:01:17.4]} 20... Rxf7 {[%clk
0:00:15.4]} 21. Rxf7 {[%clk 0:01:15.3]} 21... Kh8 {[%clk 0:00:11.9]} 22. Bxh6
{[%clk 0:01:06.4]} 22... Qb6+ {[%clk 0:00:02.8]} 23. Be3+ {[%clk 0:01:04.2]} 1-0

[Event "Late-Titled-Tuesday-Blitz-February-13-2024"]
[Site "Chess.com"]
[Date "2024.02.13"]
[Round "8"]
[White "gunslinger222"]
[Black "YellowJacek"]
[Result "1-0"]
[WhiteElo "2272"]
[BlackElo "2372"]
[TimeControl "180+1"]
[EndTime "15:26:59 PST"]
[Termination "gunslinger222 won by resignation"]

1. d4 {[%clk 0:03:00.4]} 1... Nf6 {[%clk 0:02:59.2]} 2. Bg5 {[%clk 0:03:00.4]}
2... Ne4 {[%clk 0:02:58.9]} 3. Bf4 {[%clk 0:03:00.6]} 3... d5 {[%clk 0:02:56.5]}
4. f3 {[%clk 0:03:00.2]} 4... Nf6 {[%clk 0:02:50.1]} 5. Nc3 {[%clk 0:02:59.9]}
5... c5 {[%clk 0:02:44.8]} 6. e3 {[%clk 0:02:56.9]} 6... e6 {[%clk 0:02:33.4]}
7. h4 {[%clk 0:02:51.8]} 7... a6 {[%clk 0:02:29.9]} 8. g4 {[%clk 0:02:51.5]}
8... Nc6 {[%clk 0:02:26.7]} 9. a3 {[%clk 0:02:46.1]} 9... cxd4 {[%clk
0:02:25.2]} 10. exd4 {[%clk 0:02:46.3]} 10... Qb6 {[%clk 0:02:25.4]} 11. Be3
{[%clk 0:02:33.7]} 11... Bd6 {[%clk 0:01:52]} 12. Rh3 {[%clk 0:02:23.9]} 12...
Bd7 {[%clk 0:01:43.7]} 13. g5 {[%clk 0:02:21.4]} 13... Nh5 {[%clk 0:01:43.8]}
14. Nge2 {[%clk 0:02:12.5]} 14... O-O {[%clk 0:01:32.1]} 15. f4 {[%clk
0:02:09.3]} 15... f6 {[%clk 0:01:24.9]} 16. Rf3 {[%clk 0:02:06.2]} 16... fxg5
{[%clk 0:01:19.6]} 17. hxg5 {[%clk 0:02:05.9]} 17... g6 {[%clk 0:01:18.2]} 18.
Bh3 {[%clk 0:02:05]} 18... Ng7 {[%clk 0:01:16]} 19. Nxd5 {[%clk 0:01:59.8]}
19... exd5 {[%clk 0:01:12.7]} 20. Bxd7 {[%clk 0:01:59.2]} 20... Qxb2 {[%clk
0:01:06.5]} 21. Rb1 {[%clk 0:01:52.6]} 21... Qxa3 {[%clk 0:01:04.7]} 22. Rb6
{[%clk 0:01:49.7]} 22... Nf5 {[%clk 0:00:46.8]} 23. Bxf5 {[%clk 0:01:43.4]}
23... Rxf5 {[%clk 0:00:47.7]} 24. Rxb7 {[%clk 0:01:40.7]} 24... Re8 {[%clk
0:00:47.5]} 25. Kf2 {[%clk 0:01:38.8]} 25... Qa5 {[%clk 0:00:39.7]} 26. Qh1
{[%clk 0:01:34.4]} 26... Re7 {[%clk 0:00:37.1]} 27. Rxe7 {[%clk 0:01:30.9]}
27... Nxe7 {[%clk 0:00:38]} 28. Qb1 {[%clk 0:01:13]} 28... Qc7 {[%clk
0:00:37.6]} 29. Qa2 {[%clk 0:01:11.2]} 29... Rf7 {[%clk 0:00:36.9]} 30. Qxa6
{[%clk 0:01:09.8]} 30... Nf5 {[%clk 0:00:36.8]} 31. Qa8+ {[%clk 0:01:08]} 31...
Kg7 {[%clk 0:00:36.6]} 32. Qxd5 {[%clk 0:01:08]} 32... Re7 {[%clk 0:00:36.5]}
33. c4 {[%clk 0:01:02.7]} 33... Qa5 {[%clk 0:00:34]} 34. Qxa5 {[%clk 0:00:59.4]}
1-0

[Event "Late-Titled-Tuesday-Blitz-February-13-2024"]
[Site "Chess.com"]
[Date "2024.02.13"]
[Round "8"]
[White "mishanick"]
[Black "BardArtem"]
[Result "1-0"]
[WhiteElo "2970"]
[BlackElo "2763"]
[TimeControl "180+1"]
[EndTime "15:27:02 PST"]
[Termination "mishanick won by resignation"]

1. d4 {[%clk 0:03:00.9]} 1... Nf6 {[%clk 0:02:58.3]} 2. c4 {[%clk 0:03:01.6]}
2... b6 {[%clk 0:02:57.8]} 3. f3 {[%clk 0:03:01.2]} 3... Bb7 {[%clk 0:02:52.9]}
4. e4 {[%clk 0:03:01.4]} 4... g6 {[%clk 0:02:53.8]} 5. Bd3 {[%clk 0:03:00.7]}
5... Bg7 {[%clk 0:02:53]} 6. Ne2 {[%clk 0:03:01.3]} 6... O-O {[%clk 0:02:51.8]}
7. Nbc3 {[%clk 0:03:01.7]} 7... e6 {[%clk 0:02:44]} 8. Bg5 {[%clk 0:02:59.6]}
8... h6 {[%clk 0:02:33]} 9. Bh4 {[%clk 0:02:59.7]} 9... Qe8 {[%clk 0:02:30.8]}
10. Qd2 {[%clk 0:02:57.5]} 10... d6 {[%clk 0:02:25.6]} 11. O-O {[%clk
0:02:23.2]} 11... Nfd7 {[%clk 0:02:19.1]} 12. Bc2 {[%clk 0:02:16.8]} 12... Nc6
{[%clk 0:02:12]} 13. Rad1 {[%clk 0:02:16.6]} 13... e5 {[%clk 0:02:11.1]} 14. d5
{[%clk 0:02:16.8]} 14... Nd4 {[%clk 0:02:10.4]} 15. Nxd4 {[%clk 0:02:16.3]}
15... exd4 {[%clk 0:02:11.2]} 16. Nb5 {[%clk 0:02:16.4]} 16... Ne5 {[%clk
0:01:59.9]} 17. b3 {[%clk 0:02:02.8]} 17... c5 {[%clk 0:01:34.6]} 18. dxc6
{[%clk 0:01:52.1]} 18... Nxc6 {[%clk 0:01:34]} 19. Nc7 {[%clk 0:01:35.3]} 19...
Qd7 {[%clk 0:01:32.7]} 20. Nxa8 {[%clk 0:01:35.7]} 20... Rxa8 {[%clk 0:01:33.4]}
21. f4 {[%clk 0:01:36]} 21... Re8 {[%clk 0:01:28.3]} 22. Rde1 {[%clk 0:01:34]}
22... a5 {[%clk 0:01:14.9]} 23. a3 {[%clk 0:01:34.3]} 23... d3 {[%clk 0:01:03]}
24. Bxd3 {[%clk 0:01:31.1]} 24... Nd4 {[%clk 0:01:03.9]} 25. Qd1 {[%clk
0:01:26.3]} 25... Ne6 {[%clk 0:00:45.8]} 26. f5 {[%clk 0:01:21.3]} 26... Nc5
{[%clk 0:00:39.2]} 27. f6 {[%clk 0:01:12.3]} 27... Bf8 {[%clk 0:00:38.9]} 28.
Bf2 {[%clk 0:01:08.1]} 28... Nxe4 {[%clk 0:00:35.2]} 29. Bxe4 {[%clk 0:00:55.4]}
29... Rxe4 {[%clk 0:00:36.1]} 30. Rxe4 {[%clk 0:00:53.5]} 30... Bxe4 {[%clk
0:00:37]} 31. Re1 {[%clk 0:00:54]} 31... d5 {[%clk 0:00:28.8]} 32. Rxe4 {[%clk
0:00:53.3]} 1-0